{"text_format":"1","workbook":"xlsx","n_sheets":2,"sheets":["Existing industrial slidings","Area without industrial sliding"],"not_rendered":{"charts":0,"images":0,"macros":1,"external_links":0,"defined_names":0,"comments":0,"pivot_tables":0},"unopened":[],"bounds":{"document_bytes":16777216,"sheet_cells":100000,"rows_first":2000,"rows_last":500,"rows_between":2000,"halvings":0,"cell_chars":16384,"cell_head_chars":4096},"cells_cut":0,"cells_raw":0,"read":"whole","date_system":"1900"}

{"sheet":"Existing industrial slidings","index":0,"n_rows":42,"n_cols":14,"rows_kept":42,"cut":false,"hidden":false,"merged":[]}
[null,"Parameters","Weight"," 1 Ind. siding"," 2 Ind. siding"," 3 Ind. siding"," 4 Ind. siding"," 5 Ind. siding"," 6 Ind. siding"," 7 Ind. siding",null,null,null,"Instructions:"]
[null,"Use of siding (wagon delivery)",8,null,null,null,null,null,null,null,null,null,null,"The weights represent the importance of each parameter, the higher the number of the weight the more important it is."]
[{"$f":"$C$2*C3","v":64},"Every working day",8,null,null,null,null,null,null,null,null,null,null,"The maximal weights of each parameters are in red."]
[{"$f":"$C$2*C4","v":48},"Once a week",6,null,null,null,null,null,null,null,null,null,null,"The other parameter weights are written in black and descends from the maximal to the minimal weight."]
[32,"Once a month",4]
[16,"Few times a year (less than 12)",2,null,null,null,null,null,null,null,null,null,null,"To calculate the weight for each siding you have to multiply the maximal weight with other weight of the correct parameter."]
[null,"Volume of the wagons per year",9,null,null,null,null,null,null,null,null,null,null,"(e.g. Ind. siding 1 is in use every work day, that means we multiply the maximal weight (8) with the parameter weight for every working day (8) = 8 x 8 = 64)"]
[{"$f":"$C$7*C8","v":81},"Over 5000",9,null,null,null,null,null,null,null,null,null,null,"(e.g. Ind. siding 2 has a rail axle load category of 20 t/axle, that means we multiply the maximal weight (8) with the parameter weight 20 t/axle (4) = 8 X 4 = 32)"]
[{"$f":"$C$7*C9","v":72},"5000-2500",8]
[63,"2500-1000",7,null,null,null,null,null,null,null,null,null,null,"The total ammount of weight numbers will automatically sum up."]
[36,"1000-500",4,null,null,null,null,null,null,null,null,null,null,"At the end please sort the sidings in order by highest number of weights (#1) to lowest number of weights (#7)."]
[18,"500-250",2]
[9,"250-0",1]
[null,"Rail axle load category",8]
[{"$f":"$C$14*C15","v":64},"25.0 tons/axle",8]
[{"$f":"$C$14*C16","v":48},"22.5 tons/axle",6]
[32,"20.0 tons/axle",4]
[16,"18.0 tons/axle",2]
[null,"Electrification",7]
[{"$f":"$C$19*C20","v":49},"Line and siding electrification",7]
[{"$f":"$C$19*C21","v":35},"Only line electrification",5]
[21,"Without electrification ",3]
[null,"All sidings length in total",8]
[{"$f":"$C$23*C24","v":64},"over 1000 m",8]
[{"$f":"$C$23*C25","v":48},"between 500 and 1000 m",6]
[32,"less than 500 m",4]
[null,"Shunting traction vehicles",8]
[{"$f":"$C$27*C28","v":64},"Own locomotive, rail tractor, etc",8]
[{"$f":"$C$27*C29","v":48},"Provided by the rail carrier",6]
[8,"Without possibility for shunting",1]
[null,"Direct connection to rail freight corridor",7]
[{"$f":"$C$31*C32","v":49},"Yes",7]
[{"$f":"$C$31*C33","v":28},"No",4]
[null,"Required infrastructure investments",10]
[{"$f":"$C$34*C35","v":100},"No investment required",10]
[{"$f":"$C$34*C36","v":80},"Up to-250.000 EUR",8]
[60,"250.000-500.000 EUR",6]
[40,"500.000-1.000.000 EUR",4]
[20,"Over 1.000.000 EUR",2]
[null,"Total possible weights (points)",535,{"$f":"SUM(D3:D39)","v":0},0,0,0,0,0,0]
[null,"%",100,{"$f":"D40/$C$40","v":0},0,0,0,{"$f":"H40/$C$40","v":0},0,0]
[null,"Order","/"]

{"sheet":"Area without industrial sliding","index":1,"n_rows":27,"n_cols":14,"rows_kept":27,"cut":false,"hidden":false,"merged":[]}
[null,"Parameters","Weight"," 1 Ind. siding"," 2 Ind. siding"," 3 Ind. siding"," 4 Ind. siding"," 5 Ind. siding"," 6 Ind. siding",null,null,null,null,"Instructions:"]
[null,"Potential Volume of the wagons per year",9,null,null,null,null,null,null,null,null,null,null,"The weights represent the importance of each parameter, the higher the number of the weight the more important it is."]
[{"$f":"$C$2*C3","v":81},"Over 5000",9,null,null,null,null,null,null,null,null,null,null,"The maximal weights of each parameters are in red."]
[{"$f":"$C$2*C4","v":72},"5000-2500",8,null,null,null,null,null,null,null,null,null,null,"The other parameter weights are written in black and descends from the maximal to the minimal weight."]
[63,"2500-1000",7]
[36,"1000-500",4,null,null,null,null,null,null,null,null,null,null,"To calculate the weight for each siding you have to multiply the maximal weight with other weight of the correct parameter."]
[18,"500-250",2]
[9,"250-0",1]
[null,"Distance between area and railway station",9,null,null,null,null,null,null,null,null,null,null,"(e.g. Ind. siding 3 has a potential volume of wagons per year of 1000-2500, that means we multiply the maximal weight (9) with the correct parameter weight (7) = 9 x 7 = 63)"]
[{"$f":"$C$9*C10","v":81},"0-500 m",9,null,null,null,null,null,null,null,null,null,null,"(e.g. Ind. siding 5 has line electrifcation, that means we multiply the maximal weight (7) with the correct parameter weight (7) = 7 X 7 = 49)"]
[{"$f":"$C$9*C11","v":63},"500-1000 m",7]
[45,"1000-2000 m",5]
[27,"Over 2000 m",3,null,null,null,null,null,null,null,null,null,null,"The total ammount of weight numbers will automatically sum up."]
[null,"Line electrification",7,null,null,null,null,null,null,null,null,null,null,"At the end please place the sidings in order by highest number of weights (#1) to lowest number of weights (#6)."]
[{"$f":"$C$14*C15","v":49},"Line electrification",7]
[{"$f":"$C$14*C16","v":21},"Without electrification",3]
[null,"Direct connection to rail freight corridor",7]
[{"$f":"$C$17*C18","v":49},"Yes",7]
[{"$f":"$C$17*C19","v":28},"No",4]
[null,"Required infrastructure investments",10]
[{"$f":"$C$20*C21","v":100},"Up to-250.000 EUR",10]
[{"$f":"$C$20*C22","v":80},"250.000-500.000 EUR",8]
[{"$f":"$C$20*C23","v":60},"500.000-100.0000 EUR",6]
[{"$f":"$C$20*C24","v":40},"Over 1.000.000 EUR",4]
[null,"Total possible weights (points)",360,{"$f":"SUM(D2:D24)","v":0},{"$f":"SUM(E2:E24)","v":0},0,0,{"$f":"SUM(H2:H24)","v":0},0]
[null,"%",100,{"$f":"D25/$C$25","v":0},{"$f":"E25/$C$25","v":0},0,0,0,0]
[null,"Order","/"]